Cogmind - Beta 16 @@@ ROGUE MODE // 2025.11.05 @ 12:28:20 Player: Mozco Result: Self-destructed Performance ------------- Evolutions (3) 1500 Regions Visited (10) 2000 Robots Destroyed (149) 745 Value Destroyed (4831) 4831 Prototype IDs (31) 620 Alien Tech Used (0) 0 Bonus (2397) 2397 TOTAL SCORE: 12093 Bonus ------- High Alert Combat Kills 197 Entered Garrisons 400 Used RIF Installer 1500 Aligned with FarCom 300 Cogmind --------- Core Integrity 500/700 Matter 298/300 Energy 290/290 System Corruption 2% Temperature Cool (0) Movement Treading (480) Ox4 Location -7/Garrison Parts ------- > --- POWER (1) -------- Improved Deuterium Engine > --- PROPULSION (4) --- Improved Treads > --- UTILITY (5) ------ Advanced Heat Sink Huge Storage Unit Improved Medium Armor Plating Hacking Suite > --- WEAPON (3) ------- (None) > --- INVENTORY (25) --- Improved Deuterium Engine Improved Deuterium Engine Thermal Generator Coolant Injector Coolant Injector Reactive Plating Hacking Suite Hacking Suite Relay Coupler [NC] (29) Relay Coupler [Sentry] (22) Relay Coupler [Heavy] (12) System Restoration Module Trap Reconfigurator Improved EM Pulse Cannon Improved EM Pulse Cannon YOLO Cannon XL Autogun Array Improved Grenade Launcher Remote Datajack Katana Peak State ------------ > --- POWER ------------ Improved Deuterium Engine > --- PROPULSION ------- Light Treads Improved Treads Armored Treads Medium Treads > --- UTILITY ---------- Advanced Heat Sink Huge Storage Unit Particle Charger Improved Medium Armor Plating Hacking Suite > --- WEAPON ----------- Shock Rifle Improved EM Pulse Cannon Improved EM Pulse Cannon > --- INVENTORY -------- Improved Deuterium Engine Improved Deuterium Engine Light Treads Improved Treads Thermal Generator Coolant Injector Coolant Injector Reactive Plating Hacking Suite Hacking Suite System Restoration Module Trap Reconfigurator EM Pulse Cannon Improved EM Pulse Cannon Improved EM Pulse Cannon YOLO Cannon XL Autogun Array Improved Grenade Launcher Remote Datajack Katana [Rating: 53] Favorites ----------- Power Improved Deuterium Engine Engine Improved Deuterium Engine Propulsion Light Treads Treads Light Treads Utility Hacking Suite Device Shield Generator Storage Huge Storage Unit Hackware Hacking Suite Protection Improved Light Armor Plating Weapon Advanced Beam Cannon Energy Gun Shock Rifle Energy Cannon Advanced Beam Cannon Ballistic Gun Improved Assault Rifle Launcher Improved Grenade Launcher Special Weapon Remote Datajack Slashing Weapon Katana Build | -11 -10 -10 -9 -9 -9 -8 -8 -8 -7 -7 ------- Run | Yrd Mat Min Mat Min Exi Min Mat Gar Fac Gar Slots Evolved 6 | . . . 2 . . . 2 . 2 . Power . | . . . . . . . . . . . Propulsion 2 | . . . 1 . . . 1 . . . Utility 3 | . . . 1 . . . 1 . 1 . Weapon 1 | . . . . . . . . . 1 . Parts Attached 85 | 7 10 . 14 6 1 . 24 5 14 4 Power 6 | 1 1 . 1 . . . 3 . . . Engine 6 | 1 1 . 1 . . . 3 . . . Core . | . . . . . . . . . . . Reactor . | . . . . . . . . . . . Propulsion 24 | 2 2 . 7 2 . . 6 3 2 . Treads 24 | 2 2 . 7 2 . . 6 3 2 . Leg . | . . . . . . . . . . . Wheel . | . . . . . . . . . . . Hover . | . . . . . . . . . . . Flight . | . . . . . . . . . . . Utility 24 | 1 3 . 4 1 1 . 5 . 7 2 Device 12 | . 2 . . 1 . . 3 . 4 2 Storage 4 | 1 1 . 1 . 1 . . . . . Processor . | . . . . . . . . . . . Hackware 3 | . . . 1 . . . . . 2 . Protection 5 | . . . 2 . . . 2 . 1 . Artifact . | . . . . . . . . . . . Weapon 31 | 3 4 . 2 3 . . 10 2 5 2 Energy Gun 13 | 3 4 . . . . . 5 . . 1 Energy Cannon 10 | . . . 1 2 . . 2 1 3 1 Ballistic Gun 4 | . . . 1 . . . 3 . . . Ballistic Cannon . | . . . . . . . . . . . Launcher 2 | . . . . 1 . . . 1 . . Special Weapon 1 | . . . . . . . . . 1 . Impact Weapon . | . . . . . . . . . . . Slashing Weapon 1 | . . . . . . . . . 1 . Piercing Weapon . | . . . . . . . . . . . Special Melee Weapon . | . . . . . . . . . . . Unidentified Prototypes 4 | . . . 2 . . . 2 . . . Parts Lost 15 | . 3 . . . . . 3 . . 9 Power 2 | . 1 . . . . . 1 . . . Propulsion 7 | . 1 . . . . . 1 . . 5 Utility 3 | . . . . . . . 1 . . 2 Weapon 3 | . 1 . . . . . . . . 2 Highest Loss Streak 6 | . 2 . . . . . 2 . . 6 To Critical Strikes . | . . . . . . . . . . . Average Backups 17 | 1 5 10 17 19 15 17 17 20 20 20 Power 1 | . . 1 1 1 1 1 1 2 2 2 Propulsion 2 | . 1 5 4 3 2 2 2 2 1 2 Utility 6 | . 1 1 4 5 4 5 4 7 9 8 Weapon 6 | . 2 3 5 6 6 7 7 7 7 6 Tool/Special . | . . . . . . . . . . . Unused Backups 32 | . . . 1 1 1 1 9 2 2 15 Power 9 | . . . . 1 . . 5 1 . 2 Propulsion . | . . . . . . . . . . . Utility 12 | . . . . . 1 . 1 . 2 8 Weapon 7 | . . . 1 . . . 2 . . 4 Tool/Special 4 | . . . . . . 1 1 1 . 1 Average Slot Usage (%) 98 | . 90 100 99 100 100 100 97 100 98 94 Engine 9 | . 13 14 11 11 11 11 9 9 7 7 Treads 32 | . 25 28 32 33 33 33 34 36 30 28 Device 10 | . 8 14 11 11 11 11 9 9 9 14 Storage 9 | . 14 14 11 11 11 11 9 9 7 7 Hackware 8 | . . . 3 11 11 11 9 9 13 7 Protection 5 | . . . 6 . . . 7 9 5 7 Energy Gun 7 | . 28 28 8 . . . 9 12 . 3 Energy Cannon 8 | . . . 5 10 22 20 4 4 14 12 Ballistic Gun 2 | . . . 7 10 . . 4 . . . Peak Build Rating 53 | 6 9 9 20 20 25 26 38 38 51 53 Average Rating 30 | 4 7 9 16 19 22 25 31 37 44 49 On Entrance 21 | . 6 9 9 20 20 25 26 37 38 51 Avg Prop Armor Cover (%) . | . . . . . . . . . . . Naked Turns . | . . . . . . . . . . . Heaviest Build 127 | 14 21 21 56 57 97 97 102 105 126 127 Greatest Support 91 | 40 40 40 66 60 60 60 80 80 91 91 Greatest Overweight (x) 4 | 2 . . . . 1 1 1 1 1 4 Average Overweight (x) . | . . . . . . 1 1 1 1 1 Largest Inventory Capacity 25 | 8 10 10 20 20 25 25 25 25 25 25 Average Capacity 22 | 7 8 10 19 20 22 25 25 25 25 25 Most Carried 25 | 2 10 10 20 20 25 25 25 25 25 25 Average Carried 21 | 1 5 10 17 19 22 24 24 24 24 24 Final Capacity 25 | 8 10 10 20 20 25 25 25 25 25 25 Final Carried 25 | 2 10 10 20 20 25 25 25 25 25 24 Class Distribution -------------------- 62% | Mutant 22% | Scavenger-Mutant 7% | Scavenger-Tank 7% | Tank Dominant Class ---------------- Mutant | -10/Materials Mutant | -10/Mines Mutant | -9/Materials Scavenger-Mutant | -9/Mines Mutant | -9/Exiles Mutant | -8/Mines Mutant | -8/Materials Mutant | -8/Garrison Tank | -7/Factory Scavenger-Mutant | -7/Garrison Resources | -11 -10 -10 -9 -9 -9 -8 -8 -8 -7 -7 ----------- Run | Yrd Mat Min Mat Min Exi Min Mat Gar Fac Gar Matter Collected 2282 | 219 146 . 276 115 . 61 746 130 305 284 Remotely . | . . . . . . . . . . . Salvage Created 5536 | . 539 15 703 366 . 305 1546 555 1041 466 Parts 271 | . 24 3 49 29 . 13 59 38 39 17 Haulers Intercepted 9 | . 1 . 2 . . . 5 . 1 . Recyclers Shooed 4 | . . . . . . . 2 . 2 . Parts Field Recycled . | . . . . . . . . . . . Retrieved Matter . | . . . . . . . . . . . Parts Self-Destructed . | . . . . . . . . . . . Prevented . | . . . . . . . . . . . Parts Restored . | . . . . . . . . . . . Kills | -11 -10 -10 -9 -9 -9 -8 -8 -8 -7 -7 ------- Run | Yrd Mat Min Mat Min Exi Min Mat Gar Fac Gar Combat Hostiles Destroyed 107 | . 9 . 15 13 . 6 22 15 14 13 Melee 4 | . . . . . . . . 2 1 1 Guns 41 | . 8 . 14 5 . . 10 4 . . Cannons 32 | . . . 1 7 . 2 7 5 8 2 AOE 22 | . . . . 1 . 4 4 3 2 8 Classes Destroyed 14 | . 4 1 3 2 . . 1 3 . . Worker 6 | . . 1 . . . . 2 . 3 . Builder 1 | . . . . . . . 1 . . . Tunneler 4 | . . . . 3 . 1 . . . . Hauler 9 | . 1 . 2 . . . 5 . 1 . Recycler 10 | . 1 . 2 . . 1 4 . 2 . Operator 5 | . . . 3 . . . 1 . 1 . Watcher 8 | . 1 . 2 . . . 3 1 1 . Swarmer 24 | . . . 11 7 . . . 6 . . Grunt 62 | . 9 . 1 5 . 6 19 1 12 9 Brawler 3 | . . . . . . . . 3 . . Duelist 3 | . . . . . . . . 1 . 2 Sentry 9 | . . . 3 . . . 3 2 . 1 Programmer 5 | . . . . . . . . 2 2 1 Assembled 1 | . . . . 1 . . . . . . Best Kill Streak 8 | . 4 1 6 5 . 8 8 3 4 6 Combat Bots Only 6 | . 3 . 5 5 . 6 5 3 3 6 Max Kills in Single Turn 3 | . 1 1 1 2 . 2 3 2 2 3 Gunslinging 1 | . . . . . . . 1 . . . Exploded 3 | . . . . 1 . 2 2 2 1 3 Melee 1 | . . . . . . . . 1 1 1 Uniques/NPCs Destroyed . | . . . . . . . . . . . Combat | -11 -10 -10 -9 -9 -9 -8 -8 -8 -7 -7 -------- Run | Yrd Mat Min Mat Min Exi Min Mat Gar Fac Gar Hostile Shots Fired 557 | . 66 . 75 47 . 10 115 37 114 93 Missed 176 | . 14 . 32 14 . 3 28 8 41 36 Hits 381 | . 52 . 43 33 . 7 87 29 73 57 Melee 4 | . . . . 1 . . . . . 3 Projectile 377 | . 52 . 43 32 . 7 87 29 73 54 Critical Strikes 18 | . 3 . 1 . . . 5 . 4 5 Actively Blocked 1 | . . . . . . . 1 . . . Damage Taken 4895 | . 662 . 418 405 . 88 1101 276 832 1113 Core 534 | . 77 . 51 46 . . 122 38 95 105 Absorbed by Shields 720 | . . . . . . 32 318 108 187 75 Redirected to Shielding 21 | . . . . . . . 21 . . . Regen/Repaired (Parts) 42 | . . . . . . . 19 . 23 . Core Remaining (%) 78 | 100 . 69 . . . 75 . 70 . . Volleys Fired 336 | . 46 1 53 24 . 13 88 39 44 28 Largest 3 | . 2 2 2 2 . 2 2 2 3 3 Hottest 201 | . 115 105 105 91 . 124 128 119 201 201 Shots Fired 597 | . 90 2 102 46 . 19 161 60 75 42 Gun 361 | . 90 2 82 22 . . 116 45 . 4 Cannon 200 | . . . 20 22 . 13 38 11 68 28 Launcher 29 | . . . . 2 . 6 7 4 . 10 Special 7 | . . . . . . . . . 7 . Kinetic 142 | . . . 44 22 . . 76 . . . Thermal 174 | . 68 1 49 22 . 3 31 . . . Explosive 29 | . . . . 2 . 6 7 4 . 10 Electromagnetic 245 | . 22 1 9 . . 10 47 56 68 32 Robot Hit Streak 15 | . 12 4 9 7 . 13 10 10 15 12 Robot Miss Streak 5 | . 5 . 3 3 . 1 5 2 2 2 Penetration Max . | . . . . . . . . . . . Secondary Targets 4 | . 1 . 2 . . . 1 . . . Max Gunslinging Chain 1 | . 1 . 1 . . . 1 . . . Shots Hit Robots 411 | . 62 1 62 26 . 15 125 27 69 24 Core Hits 223 | . 22 1 27 19 . 14 76 19 24 21 Critical Kills . | . . . . . . . . . . . Critical Parts Destroyed 3 | . . . 1 . . . 2 . . . Critical Strikes 13 | . 5 . 1 . . . 2 . 4 1 Burn 4 | . 4 . . . . . . . . . Destroy 3 | . . . 1 . . . 2 . . . Corrupt 2 | . 1 . . . . . . . 1 . Sever 4 | . . . . . . . . . 3 1 Melee Attacks 18 | . . . . . . . . . 15 3 Impact . | . . . . . . . . . . . Slashing 18 | . . . . . . . . . 15 3 Piercing . | . . . . . . . . . . . Sneak Attacks . | . . . . . . . . . . . Combat Hostiles . | . . . . . . . . . . . Follow-up Attacks . | . . . . . . . . . . . Damage Inflicted 11690 | . 915 15 1080 640 . 849 3253 764 2085 2089 Guns 4223 | . 865 15 789 202 . . 1971 364 . 17 Cannons 3627 | . . . 242 361 . 232 620 153 1417 602 Explosions 3222 | . 50 . . 44 . 617 626 236 238 1411 Melee 404 | . . . . . . . . . 345 59 Ramming 214 | . . . 49 33 . . 36 11 85 . Kinetic 2071 | . . . 525 202 . . 1344 . . . Thermal 2452 | . 666 15 455 361 . 62 527 . 238 128 Explosive 2770 | . . . . 44 . 617 590 236 . 1283 Electromagnetic 3779 | . 249 . 51 . . 170 756 517 1417 619 Impact . | . . . . . . . . . . . Slashing 404 | . . . . . . . . . 345 59 Piercing . | . . . . . . . . . . . Highest Corruption 3 | . . . . . . . . 2 3 2 Average Corruption 2 | . . . . . . . . 1 2 1 Corruption Purged 3 | . . . . . . . . . 3 . Corruption Blocked . | . . . . . . . . . . . Effects 15 | . . . . . . . . 4 3 8 Message Errors 5 | . . . . . . . . 1 2 2 Matter Fused 4 | . . . . . . . . 1 1 2 Heat Flow Errors 3 | . . . . . . . . 1 . 2 Energy Discharges 1 | . . . . . . . . . . 1 Data Loss (minor) 1 | . . . . . . . . . . 1 Misfires 1 | . . . . . . . . 1 . . Overload Shots . | . . . . . . . . . . . Overflow Damage 121 | . . . 13 8 . 5 27 . 42 26 Projectiles 85 | . . . 13 8 . 5 23 . 13 23 Explosions 20 | . . . . . . . . . 17 3 Melee 16 | . . . . . . . 4 . 12 . Knockbacks 1 | . . . . . . . . . 1 . Impact 1 | . . . . . . . . . 1 . Kinetic . | . . . . . . . . . . . Secondary . | . . . . . . . . . . . Self-Inflicted Damage 198 | . . . . 88 . . 60 30 20 . Shots 7 | . . . . 2 . . 2 1 2 . Rammed 22 | . . . 6 4 . . 1 2 9 . Targets Rammed 31 | . . . 7 6 . . 2 4 12 . Kicked . | . . . . . . . . . . . Crushed 9 | . . . 1 2 . . 1 2 3 . Highest Temperature 354 | . 354 15 27 16 . 75 219 154 309 327 Average Temperature 83 | . 115 10 10 7 . 35 64 47 122 108 Received Heat Transfer 1713 | . 426 . 81 42 . 42 583 24 280 235 Effects 4 | . . . . . . . 2 . 1 1 Interference 3 | . . . . . . . 2 . 1 . Matter Decay 1 | . . . . . . . . . . 1 Siege Activations . | . . . . . . . . . . . Martial Activations . | . . . . . . . . . . . Shielding Activations . | . . . . . . . . . . . Robots Disrupted . | . . . . . . . . . . . Combat Hostiles . | . . . . . . . . . . . Robots Corrupted 9 | . . . . . . . 3 1 3 2 Combat Hostiles 7 | . . . . . . . 1 1 3 2 Parts Fried 18 | . . . . . . . 3 1 9 5 Impact Corruptions 1 | . . . . . . . 1 . . . Robots Melted 1 | . 1 . . . . . . . . . Combat Hostiles 1 | . 1 . . . . . . . . . Parts Melted 6 | . 5 . . . . . 1 . . . Heat Transferred 4792 | . 2013 37 888 629 . 111 864 . 150 100 Parts Sabotaged . | . . . . . . . . . . . Parts Stolen . | . . . . . . . . . . . Parts Stripped . | . . . . . . . . . . . Power Chain Reactions 6 | . 1 . . . . . 1 . 3 1 Alert | -11 -10 -10 -9 -9 -9 -8 -8 -8 -7 -7 ------- Run | Yrd Mat Min Mat Min Exi Min Mat Gar Fac Gar Maximum Alert Level 3 | . . . 1 1 . . 1 3 2 2 Low Security (%) 57 | 100 100 100 40 95 . 100 99 10 23 18 Level 1 25 | . . . 59 4 . . . 34 58 12 Level 2 14 | . . . . . . . . 39 17 69 Level 3 2 | . . . . . . . . 14 . . Level 4 . | . . . . . . . . . . . Level 5 . | . . . . . . . . . . . High Security . | . . . . . . . . . . . Max Security . | . . . . . . . . . . . Peak Influence 779 | . 86 27 281 217 . 163 204 779 440 576 Initial 408 | . . 22 . 87 . . 52 76 408 124 Average 206 | . 35 8 167 135 . 25 69 430 290 419 Influence Increases 3766 | . 262 5 583 293 . 184 780 703 474 482 Destroy 0b10 Robot/C 2120 | . 180 . 300 240 . 120 440 300 280 260 Destroy 0b10 Robot/NC 215 | . 15 5 45 15 . 10 80 5 40 . Destroy Leader 372 | . 44 . 78 30 . 20 106 20 54 20 Trap Triggered on 0b10 40 | . . . . . . . 20 20 . . Successful Hack 80 | . 18 . 9 . . . 8 12 33 . Select Force Hacks 60 | . . . 30 . . . 30 . . . Disable Machine 90 | . . . 15 . . . 30 . 30 15 Anti-Garrison Action 200 | . . . . . . . . 150 . 50 Destroy Structure 229 | . 5 . 1 8 . 34 51 76 7 47 Partial Spotted 15 | . . . . . . . . 15 . . Lose Combat Pursuer 345 | . . . 105 . . . 15 105 30 90 Influence Decreases 3250 | . 205 62 357 433 86 48 798 42 1075 144 Entered New Map 811 | . . 35 . 139 86 . 84 42 371 54 Time Decay 1969 | . 175 27 357 294 . 48 534 . 534 . Lost Part 150 | . 30 . . . . . 30 . . 90 Lost Ally 20 | . . . . . . . . . 20 . Purge Threat 300 | . . . . . . . 150 . 150 . Squads Dispatched 15 | . 1 . 4 . . . 4 . 6 . Investigation 4 | . 1 . 1 . . . 1 . 1 . Extermination 3 | . . . . . . . . . 3 . Reinforcement 8 | . . . 3 . . . 3 . 2 . Assault . | . . . . . . . . . . . Garrison . | . . . . . . . . . . . Intercept . | . . . . . . . . . . . Searches Triggered . | . . . . . . . . . . . Construction Impeded 1 | . . . . . . . 1 . . . Haulers Reinforced . | . . . . . . . . . . . Active Scanning Responses . | . . . . . . . . . . . Cargo Convoy Interrupts . | . . . . . . . . . . . Stealth | -11 -10 -10 -9 -9 -9 -8 -8 -8 -7 -7 --------- Run | Yrd Mat Min Mat Min Exi Min Mat Gar Fac Gar Distress Signals 12 | . 4 . 1 1 . . 5 . 1 . Communications Jammed . | . . . . . . . . . . . Distress Signals . | . . . . . . . . . . . Times Spotted 160 | . 16 2 27 14 . 6 37 20 20 18 Peak Tracking Total 8 | . 5 2 5 4 . 3 6 4 3 8 Tactical Retreats 15 | . . . 5 . . . 1 5 1 3 Traps | -11 -10 -10 -9 -9 -9 -8 -8 -8 -7 -7 ------- Run | Yrd Mat Min Mat Min Exi Min Mat Gar Fac Gar Traps Triggered 5 | . 1 . . . . . . 3 . 1 Indirectly . | . . . . . . . . . . . Trap Hack Attempts . | . . . . . . . . . . . Triggered . | . . . . . . . . . . . Disarmed . | . . . . . . . . . . . Reprogrammed . | . . . . . . . . . . . Reused 4 | . . . . . . . 2 2 . . Traps Extracted . | . . . . . . . . . . . Installed 4 | . . . . . . . 2 2 . . Triggered 4 | . . . . . . . 2 2 . . Most Traps Carried 4 | . . . . 4 4 4 4 2 . . Machines | -11 -10 -10 -9 -9 -9 -8 -8 -8 -7 -7 ---------- Run | Yrd Mat Min Mat Min Exi Min Mat Gar Fac Gar Machines Disabled 8 | . . . 1 . . . 2 1 2 2 Max in Single Turn 1 | . . . 1 . . . 1 1 1 1 Garrison Relay 2 | . . . . . . . . 1 . 1 Machines Repaired . | . . . . . . . . . . . Machines Dismantled . | . . . . . . . . . . . Machines Sabotaged . | . . . . . . . . . . . Overloaded Fab Kills . | . . . . . . . . . . . Hacking | -11 -10 -10 -9 -9 -9 -8 -8 -8 -7 -7 --------- Run | Yrd Mat Min Mat Min Exi Min Mat Gar Fac Gar Machines Accessed 26 | . 3 . 6 1 1 . 8 2 5 . Terminals 16 | . 3 . 4 1 . . 4 2 2 . Fabricators 1 | . . . . . . . . . 1 . Repair Stations 2 | . . . . . . . 1 . 1 . Recycling Units 2 | . . . 1 . . . 1 . . . Scanalyzers 2 | . . . 1 . . . 1 . . . Garrison Access 2 | . . . . . . . 1 . 1 . Total Hacks 86 | . 15 . 22 3 1 . 23 3 19 . Successful 47 | . 6 . 13 1 1 . 16 1 9 . Failed 36 | . 8 . 8 1 . . 7 2 10 . Catastrophic 3 | . . . . . . . 2 1 . . Database Lockouts 3 | . 1 . 1 1 . . . . . . Manual 37 | . 5 . 9 3 1 . 10 1 8 . Terminals 57 | . 15 . 14 3 . . 10 3 12 . Fabricators 2 | . . . . . . . . . 2 . Repair Stations 4 | . . . . . . . 2 . 2 . Recycling Units 6 | . . . 3 . . . 3 . . . Scanalyzers 11 | . . . 5 . . . 6 . . . Garrison Access 5 | . . . . . . . 2 . 3 . Terminal Hacks 19 | . 5 . 5 1 1 . 2 1 4 . Part Schematic 2 | . . . . . . . . . 2 . Robot Analysis 7 | . 3 . 2 1 . . . . 1 . Prototype ID Bank 2 | . 1 . . . . . . . 1 . Branch Access Points 1 | . . . 1 . . . . . . . Emergency Access Points 1 | . . . . . . . . 1 . . Garrison Index 1 | . . . . . . . 1 . . . Unreport Threat 1 | . . . . . . . 1 . . . Locate Traps 1 | . . . 1 . . . . . . . Hauler Manifests 2 | . 1 . 1 . . . . . . . Proto ID Catalog 1 | . . . . . 1 . . . . . Fabricator Hacks 1 | . . . . . . . . . 1 . Network Status 1 | . . . . . . . . . 1 . Repair Station Hacks 4 | . . . . . . . 2 . 2 . Scan Component 2 | . . . . . . . 1 . 1 . Repair 2 | . . . . . . . 1 . 1 . Recycling Unit Hacks 2 | . . . 1 . . . 1 . . . Report Inventory 1 | . . . 1 . . . . . . . Retrieve Components 1 | . . . . . . . 1 . . . Scanalyzer 10 | . . . 4 . . . 6 . . . Insert Component 5 | . . . 2 . . . 3 . . . Analyze 5 | . . . 2 . . . 3 . . . Garrison Access Hacks 2 | . . . . . . . 1 . 1 . Unlock Access 2 | . . . . . . . 1 . 1 . Unauthorized Hacks 9 | . 1 . 3 . . . 4 . 1 . Terminals 6 | . 1 . 2 . . . 3 . . . Botnet 5 | . 1 . 2 . . . 2 . . . Operators 1 | . . . . . . . 1 . . . Fabricators 1 | . . . . . . . . . 1 . Haulers 1 | . . . . . . . . . 1 . Repair Stations . | . . . . . . . . . . . Recycling Units 1 | . . . 1 . . . . . . . Tunnel 1 | . . . 1 . . . . . . . Scanalyzers . | . . . . . . . . . . . Garrison Access 1 | . . . . . . . 1 . . . Eject 1 | . . . . . . . 1 . . . Data Cores Recovered 1 | . . . 1 . . . . . . . Used . | . . . . . . . . . . . Hacking Detections 21 | . 3 . 6 . . . 6 2 4 . Full Trace Events 3 | . 1 . 1 . . . . . 1 . Feedback Events . | . . . . . . . . . . . Feedback Blocked . | . . . . . . . . . . . Robot Schematics Acquired . | . . . . . . . . . . . Robots Built . | . . . . . . . . . . . Authchips . | . . . . . . . . . . . Time . | . . . . . . . . . . . Total Robot Build Rating . | . . . . . . . . . . . Part Schematics Acquired 7 | . . . 2 . . . 3 . 2 . Parts Built . | . . . . . . . . . . . Authchips . | . . . . . . . . . . . Time . | . . . . . . . . . . . Total Part Build Rating . | . . . . . . . . . . . Part Studies Acquired . | . . . . . . . . . . . Parts Repaired 2 | . . . . . . . 1 . 1 . Time 64 | . . . . . . . 32 . 32 . Parts Recycled . | . . . . . . . . . . . Recycled Matter . | . . . . . . . . . . . Retrieved Matter . | . . . . . . . . . . . Retrieved Components 10 | . . . . . . . 10 . . . Parts Scanalyzed 5 | . . . 2 . . . 3 . . . Part Schematics Acquired 5 | . . . 2 . . . 3 . . . Parts Damaged . | . . . . . . . . . . . Bothacking | -11 -10 -10 -9 -9 -9 -8 -8 -8 -7 -7 ------------ Run | Yrd Mat Min Mat Min Exi Min Mat Gar Fac Gar Used RIF Installer 3 | . . . . . . . . 2 . 1 Hotswap 1 | . . . . . . . . 1 . . Structural Interface 1 | . . . . . . . . . . 1 Robots Hacked 3 | . . . . . . . . . 3 . Non-combat 2 | . . . . . . . . . 2 . Combat 1 | . . . . . . . . . 1 . Robot Hacks Applied 5 | . . . . . . . . . 5 . no_distress 1 | . . . . . . . . . 1 . purge_threat 1 | . . . . . . . . . 1 . locate_traps 1 | . . . . . . . . . 1 . find_garrison 1 | . . . . . . . . . 1 . formatsys_high 1 | . . . . . . . . . 1 . Relay Couplers Released 12 | . . . . . . . 3 4 . 5 Ejected 3 | . . . . . . . 3 . . . Machine Destruction 9 | . . . . . . . . 4 . 5 Attached 2 | . . . . . . . . . 2 . Fabnet Peak Effective % . | . . . . . . . . . . . Robots Rewired . | . . . . . . . . . . . Allies Hacked . | . . . . . . . . . . . Hacks Repelled . | . . . . . . . . . . . Allies | -11 -10 -10 -9 -9 -9 -8 -8 -8 -7 -7 -------- Run | Yrd Mat Min Mat Min Exi Min Mat Gar Fac Gar Total Allies 1 | . . . . . . . . . 1 . Largest Group 1 | . . . . . . . . . 1 . Highest-Rated Group 32 | . . . . . . . . . 32 . Highest-Rated Ally 32 | . . . . . . . . . 32 . Total Orders . | . . . . . . . . . . . Ally Attacks . | . . . . . . . . . . . Total Damage . | . . . . . . . . . . . Kills . | . . . . . . . . . . . Allies Corrupted 1 | . . . . . . . . . 1 . Allies Melted . | . . . . . . . . . . . Intel | -11 -10 -10 -9 -9 -9 -8 -8 -8 -7 -7 ------- Run | Yrd Mat Min Mat Min Exi Min Mat Gar Fac Gar Active Infowar (turns) . | . . . . . . . . . . . Robot Analysis Total 7 | . 3 . 2 1 . . . . 1 . Derelict Logs Recovered 1 | . . 1 . . . . . . . . Drone Launches . | . . . . . . . . . . . Drone Recoveries . | . . . . . . . . . . . Exploration | -11 -10 -10 -9 -9 -9 -8 -8 -8 -7 -7 ------------- Run | Yrd Mat Min Mat Min Exi Min Mat Gar Fac Gar Turns Passed 8974 | 64 523 115 1132 651 440 619 1870 1410 1511 639 Spaces Moved 3524 | 38 220 71 572 339 220 242 575 523 510 214 Core 11 | 11 . . . . . . . . . . Treads 3513 | 27 220 71 572 339 220 242 575 523 510 214 Legs . | . . . . . . . . . . . Wheels . | . . . . . . . . . . . Hover . | . . . . . . . . . . . Flight . | . . . . . . . . . . . Fastest Speed 50 | 50 160 160 160 160 160 240 240 242 242 240 Average Speed 209 | 138 160 160 160 160 196 240 240 242 242 244 Slowest Speed 480 | 160 160 160 160 160 240 240 242 242 242 480 Overloaded Moves . | . . . . . . . . . . . Propulsion Burnouts . | . . . . . . . . . . . Robots Hopped . | . . . . . . . . . . . Potential Cave-ins . | . . . . . . . . . . . Cave-ins Triggered . | . . . . . . . . . . . Exploration Rate (%) 44 | 3 45 22 51 72 60 64 52 75 13 33 Regions Visited 10 Branch Regions 4 Pre-discovered Areas 1 | . . . 1 . . . . . . . Known Exits Taken 3 | . . . 1 . . . 1 . 1 . Unknown Exits Taken 6 | 1 1 1 . 1 1 1 . . . . Scrap Searched . | . . . . . . . . . . . Spaces Dug 36 | . . . . 7 . . . 29 . . Terrain Destroyed 193 | . 3 . . 8 . 53 61 31 6 31 Melee . | . . . . . . . . . . . Projectile 2 | . . . . . . . 2 . . . AOE 191 | . 3 . . 8 . 53 59 31 6 31 Terrain Rammed . | . . . . . . . . . . . Walls Destroyed . | . . . . . . . . . . . Machines Disabled . | . . . . . . . . . . . Actions | -11 -10 -10 -9 -9 -9 -8 -8 -8 -7 -7 --------- Run | Yrd Mat Min Mat Min Exi Min Mat Gar Fac Gar Total 4472 | 46 300 71 687 400 231 262 910 606 675 284 Wait 272 | . 11 . 8 12 . 4 152 20 52 13 Move 3514 | 37 219 70 571 338 219 241 574 522 509 214 Hop . | . . . . . . . . . . . Pick Up 83 | 2 11 . 17 6 6 1 24 4 7 5 Fast Attach 26 | 6 1 . 4 . . . 10 . 3 2 Attach 17 | . 3 . 2 1 . . 4 . 1 6 Detach 3 | . . . 1 . . . . . . 2 Swap 80 | 1 6 . 9 6 1 2 18 6 24 7 Drop 85 | . 3 . 15 7 5 1 36 7 8 3 Fire 336 | . 46 1 53 24 . 13 88 39 44 28 Melee 18 | . . . . . . . . . 15 3 Ram . | . . . . . . . . . . . Kick . | . . . . . . . . . . . Crush 31 | . . . 7 6 . . 2 4 12 . Escape Stasis 3 | . . . . . . . . 2 . 1 Rewire . | . . . . . . . . . . . Trap 4 | . . . . . . . 2 2 . . Miscellaneous . | . . . . . . . . . . . Route ------- -11/Scrapyard -10/Materials (discovered 2 exits: *Mat / [*Min]) -10/Mines -9/Materials -9/Mines (discovered 2 exits: *Mat / *Exi) -9/Exiles -8/Mines -8/Materials -8/Garrison (discovered 2 exits: *Fac x2) -7/Factory -7/Garrison History --------- Turn | Location | Event 22 | -11/Scrapyard | Discovered new exit (range 16) 65 | -11/Scrapyard | Entered Materials 117 | -10/Materials | Discovered new exit (range 16) 307 | -10/Materials | Build established: Mutant 308 | -10/Materials | Central database locked down 428 | -10/Materials | Discovered new exit (range 13) 588 | -10/Materials | Entered Mines 660 | -10/Mines | Learned Materials trap positions 689 | -10/Mines | Discovered new exit (range 9) 703 | -10/Mines | Entered Materials 703 | -9/Materials | Evolved 2 slots: Propulsion x1, Utility x1 704 | -9/Materials | Loaded intel: 10 trap records 1445 | -9/Materials | Identified exit to Mines 1715 | -9/Materials | Central database locked down 1773 | -9/Materials | Build established: Scavenger-Mutant 1835 | -9/Materials | Entered Mines 1887 | -9/Mines | Central database locked down 2092 | -9/Mines | Discovered new exit (range 3) 2187 | -9/Mines | Met a Derelict testing a Signal Generator 2191 | -9/Mines | Found Signal Generator 2234 | -9/Mines | Excavation squad dispatched 2234 | -9/Mines | A large section of the Mines collapsed 2450 | -9/Mines | Found a hidden stash of uninstalled traps 2479 | -9/Mines | Deemed a non-threat by the Exiles lab entrance 2479 | -9/Mines | Discovered new exit (range 5) 2486 | -9/Mines | Entered Exiles 2525 | -9/Exiles | Met 8R-AWN 2552 | -9/Exiles | Met EX-HEX 2600 | -9/Exiles | Met EX-BIN 2621 | -9/Exiles | Aligned with FarCom system 2622 | -9/Exiles | Given EX-Vault access code 2661 | -9/Exiles | Opened EX-Vault 2675 | -9/Exiles | Found Trap Reconfigurator 2679 | -9/Exiles | Found YOLO Cannon 2687 | -9/Exiles | Found XL Autogun Array 2748 | -9/Exiles | Warned to stay clear of 0b10 Research branches 2761 | -9/Exiles | Build established: Mutant 2816 | -9/Exiles | Met EX-DEC 2902 | -9/Exiles | Discovered new exit (range 10) 2926 | -9/Exiles | Stole three prototypes: Trap Reconfigurator, YOLO Cannon, XL Autogun Array 2926 | -9/Exiles | Entered Mines 3519 | -8/Mines | Discovered new exit (range 9) 3545 | -8/Mines | Entered Materials 3545 | -8/Materials | Evolved 2 slots: Propulsion x1, Utility x1 4853 | -8/Materials | Repaired Shield Generator 5411 | -8/Materials | Identified exit to Garrison 5415 | -8/Materials | Entered Garrison 5461 | -8/Garrison | Installed Relay Interface Framework 5572 | -8/Garrison | Triggered checkpoint 5658 | -8/Garrison | Triggered checkpoint 6092 | -8/Garrison | Triggered checkpoint 6185 | -8/Garrison | Discovered new exit (range 10) 6446 | -8/Garrison | Discovered new exit (range 10) 6529 | -8/Garrison | Triggered checkpoint 6642 | -8/Garrison | Expanded RIF knowledge: Hotswap 6698 | -8/Garrison | Garrison Relay disabled 6795 | -8/Garrison | Build established: Scavenger-Mutant 6825 | -8/Garrison | Entered Factory 6825 | -7/Factory | Evolved 2 slots: Utility x1, Weapon x1 6827 | -7/Factory | FarCom data flow suspended 7222 | -7/Factory | Build established: Scavenger-Tank 7454 | -7/Factory | Repaired Shield Generator 7726 | -7/Factory | Build established: Mutant 8096 | -7/Factory | Build established: Tank 8319 | -7/Factory | Identified exit to Garrison 8336 | -7/Factory | Entered Garrison 8447 | -7/Garrison | Triggered checkpoint 8534 | -7/Garrison | Triggered checkpoint 8648 | -7/Garrison | Expanded RIF knowledge: Structural Interface 8757 | -7/Garrison | Garrison Relay disabled 8914 | -7/Garrison | Spotted B-75 Beast 8914 | -7/Garrison | Spotted B-75 Beast 8975 | -7/Garrison | Self-destructed Last Messages --------------- 08861_ RIF reveals location of phase wall. 08862_ System corrupted: Matter fused (-7). 08865_ RIF reveals location of phase wall. 08915_ B-75 Beast springs to life. 08915_ Lgt. Treads destroyed. 08915_ Imp. EM Pulse Cannon destroyed. 08918_ Shock Rifle blasted off. 08919_ Acquired 5 matter. 08921_ Acquired 11 matter. 08942_ Arm. Treads destroyed. 08953_ Lgt. Treads destroyed. 08954_ Acquired 6 matter. 08957_ A NLDKV4KUB&FR|=OLZE&%BXWOO1A4OP 08963_ Imp. Treads destroyed. 08964_ Dropped EM Pulse Cannon. 08965_ Acquired 6 matter. 08969_ Med. Treads destroyed. 08969_ Critical hit (Blast). 08970_ Acquired 3 matter. 08973_ Acquired 4 matter. Map ----- +----------------------------------------------------+ | ?????????????????????????????????????????????????? | | ???????????????????????????????????????#+####????? | | ???????????????????????????????????????] ????? | | ???????????????????????????????????????] ????? | | ????????##?????????????????????????????] ?????? | | ????????"?????????????????????????????? ?????? | | ????#### ??????????????????????????????! ?????? | | ????? ???????????????????????????????! ??????? | | ????? ???????????????????????????????! ??????? | | ?????#"#???????????????????? ????????# #??????? | | ?????# #???????????????????# ????????# #??????? | | ?????# #???????????????????# #???????# #??????? | | ???### ##??????????????????# #???????# #??????? | | ??##""""################/### ######### #??????? | | ??# "/! #??????? | | ??##"%= ! [ #??????? | | ???#""## ! ###### #####"""## ###+"#### #??????? | | ??# #"" ""#???# #????????# #?# #???# #??????? | | ??###########??## #????????# #?# "???# #??????? | | ???????????????#! #????????# #?# #???# #??????? | | ???????????????#! #????????+ #?# #???# #??####? | | ???????????????#! #????????# #?# #???# #? #? | | ???????????????## #????????# ###+##### ## ## | | ????????#######?# #????????# B"% | | ????????#"""" ### ##########g | | ????????#" %@ ] =%* | | ????????#"""" ####################+#### # # | | ????????#######?????????????????????### ## # | | ????????????????????????????????????# | | ????????????????????????????????????# | | ????????????????????????????????????# | | | ????????????????????????????????????# ! | | ????????????????????????????????????### [ ## ## | | ????????????????????????????########### ]* ## | | ????????????????????????????# == | | ????????????????????????????# ! [ | | ????????????????????????????# ####### [ | | ????????????????????????????# #???# # ##""""## | | ????????????????????????????# #???# ## ##?????? | | ????????????????????????????# # ## ####??? | | ????????????????????????????# #?### ## #??? | | ????????????????????????????# #???# ### ### #??? | | ????????????????????????????# #???#???# #?# #??? | | ?????????????????######"""### ######### ^### #??? | | ????????????????#^ " #??? | | ????????????????# #####??? | | ??????????????????#####"""### ############??????? | | ????????????????????????????# #?????????????????? | | ????????????????????????????# #?????????????????? | | ????????????????????????????# #?????????????????? | +----------------------------------------------------+ Best States ------------- Heat Dissipation 53 Coolant Potential 65 Energy Generation 18 Energy Capacity 290 Matter Stores 300 Matter Capacity 300 Sight Range 16 Terrain Scan Density 10 Armor Coverage 225 Utility Shielding 33 Evasion (%) 40 Recoil Reduction 4 Particle Charging 15 Offensive Hacking 10 Relay Coupler Types 1 Relay Coupler Value 19 Item Schematics ----------------- Utility Shielding | -9/Materials | Scanalyzed Lgt. Treads | -9/Materials | Scanalyzed Imp. Treads | -8/Materials | Scanalyzed Particle Charger | -8/Materials | Scanalyzed Datajack | -8/Materials | Scanalyzed Arc Projector | -7/Factory | Hacked Proton Cannon | -7/Factory | Hacked Robot Schematics ------------------ None Fabricated ------------ Nothing Repaired ---------- Shield Generator | 36% | -8/Materials Shield Generator | 23% | -7/Factory Studied --------- None Alien Tech Used ----------------- None Achievements -------------- None Challenges ------------ None Game ------ Seed SurveybotSmartbombPod Manual? 0 Play Time 01:13:37 Cumulative 216.1 hours Start 2025.11.05 @ 10:57:41 End 2025.11.05 @ 12:28:20 Sessions 1 Manual Loads 0 Difficulty Rogue Special Mode None Game No. 222 Rogue 218 Adventurer 3 Explorer 1 Win Type - Total 1 Types 1/0/0/0/0/0/0/0/0/0 Lore% 72 Gallery% 73 Achievement% 55 Wizard Run 0 Options --------- Layout 0 ASCII 0 Keyboard 0 Movement Mouse Keybinds 0 Fullscreen 2 Font 18/SmallcapsGlow Map View 76x50 Zoom Use 0% Tactical HUD 1 Map Filters NONE Filters NONE Steam 1 RUN: 0138667e-2a7f-413b-b5fa-4bef931efc55